Cogmind - Beta 14 @@@ ROGUE MODE // 2024.11.24 @ 16:10:46 Player: Fangrelle Result: Destroyed by LJ-Q6C(R) with Subdweller Laser Performance ------------- Evolutions (0) 0 Regions Visited (3) 600 Robots Destroyed (19) 95 Value Destroyed (576) 576 Prototype IDs (0) 0 Alien Tech Used (0) 0 Bonus (0) 0 TOTAL SCORE: 1271 Bonus ------- None Cogmind --------- Core Integrity 0/250 Matter 300/300 Energy 198/200 System Corruption 0% Temperature Cool (6) Movement Rolling (90) Location -10/Subcaves Parts ------- > --- POWER (1) -------- Subdweller Power Source > --- PROPULSION (2) --- Wheel Compact Wheel > --- UTILITY (2) ------ Disposable Heat Sink Small Storage Unit > --- WEAPON (2) ------- Riot Gun Subdweller Beam Cannon > --- INVENTORY (8) ---- Subdweller Monowheel Subdweller Monowheel Disposable Heat Sink Seismic Detector Tractor Beam EM Pulse Gun Makeshift Laser Multitool Peak State ------------ > --- POWER ------------ Subdweller Power Source > --- PROPULSION ------- Wheel Compact Wheel > --- UTILITY ---------- Disposable Heat Sink Small Storage Unit > --- WEAPON ----------- Riot Gun Makeshift Laser > --- INVENTORY -------- Subdweller Monowheel Subdweller Monowheel Disposable Heat Sink Seismic Detector Tractor Beam EM Pulse Gun Medium Laser Multitool [Rating: 15] Favorites ----------- Power Ion Engine Engine Ion Engine Propulsion Light Treads Treads Light Treads Leg Aluminum Leg Wheel Wheel Utility Small Storage Unit Device Heat Sink Storage Small Storage Unit Weapon Medium Laser Energy Gun Medium Laser Energy Cannon Subdweller Beam Cannon Ballistic Gun Assault Rifle Launcher Rocket Launcher Build | -11 -10 -10 -10 ------- Run | Yrd Mat Min Sub Slots Evolved . | . . . . Power . | . . . . Propulsion . | . . . . Utility . | . . . . Weapon . | . . . . Parts Attached 17 | . 3 1 13 Power 2 | . . . 2 Engine 2 | . . . 2 Core . | . . . . Reactor . | . . . . Propulsion 4 | . 2 . 2 Treads 2 | . 2 . . Leg . | . . . . Wheel 2 | . . . 2 Hover . | . . . . Flight . | . . . . Utility 4 | . 1 . 3 Device 4 | . 1 . 3 Storage . | . . . . Processor . | . . . . Hackware . | . . . . Protection . | . . . . Artifact . | . . . . Weapon 7 | . . 1 6 Energy Gun 4 | . . . 4 Energy Cannon 1 | . . . 1 Ballistic Gun 1 | . . . 1 Ballistic Cannon . | . . . . Launcher 1 | . . 1 . Special Weapon . | . . . . Impact Weapon . | . . . . Slashing Weapon . | . . . . Piercing Weapon . | . . . . Special Melee Weapon . | . . . . Unidentified Prototypes . | . . . . Parts Lost 6 | . . . 6 Power 2 | . . . 2 Propulsion 2 | . . . 2 Utility 1 | . . . 1 Weapon 1 | . . . 1 Highest Loss Streak 4 | . . . 4 To Critical Strikes 1 | . . . 1 Average Slot Usage (%) 94 | . 95 100 92 Engine 10 | . 14 14 8 Treads 14 | . 12 28 10 Leg 2 | . 15 . . Wheel 10 | . . . 17 Device 12 | . 9 14 13 Storage 14 | . 14 14 14 Energy Gun 18 | . 28 19 15 Ballistic Gun 3 | . . . 6 Launcher 5 | . . 8 5 Peak Build Rating 15 | . 7 8 15 Average Rating 9 | . 6 7 10 On Entrance 6 | 6 6 7 8 Naked Turns . | . . . . Heaviest Build 22 | 14 15 17 22 Greatest Support 40 | 20 40 40 40 Greatest Overweight (x) . | . . . . Average Overweight (x) . | . . . . Largest Inventory Capacity 8 | . 8 8 8 Average Capacity 8 | . 8 8 8 Most Carried 8 | . 8 8 8 Average Carried 7 | . 7 8 7 Final Capacity 8 | 8 8 8 8 Final Carried 8 | 6 8 8 8 Class Distribution -------------------- 100% | Mutant Dominant Class ---------------- Mutant | -10/Materials Mutant | -10/Mines Mutant | -10/Subcaves Resources | -11 -10 -10 -10 ----------- Run | Yrd Mat Min Sub Matter Collected 566 | 200 30 76 260 Remotely . | . . . . Salvage Created 700 | . 187 100 413 Parts 39 | . 8 10 21 Haulers Intercepted . | . . . . Recyclers Shooed . | . . . . Parts Field Recycled . | . . . . Retrieved Matter . | . . . . Parts Self-Destructed 13 | . . . 13 Prevented . | . . . . Kills | -11 -10 -10 -10 ------- Run | Yrd Mat Min Sub Combat Hostiles Destroyed 31 | . 3 18 10 Guns 14 | . 3 4 7 AOE 17 | . . 14 3 Classes Destroyed 8 | . 3 2 3 Recycler 1 | . 1 . . Watcher 1 | . 1 . . Swarmer 4 | . . 4 . Grunt 4 | . 3 . 1 Sentry 1 | . . . 1 Artisan 1 | . . . 1 Subdweller 8 | . . . 8 Assembled 14 | . . 14 . Best Kill Streak 14 | . 2 14 2 Combat Bots Only 14 | . 1 14 2 Max Kills in Single Turn 7 | . 1 7 1 Gunslinging . | . . . . Exploded 7 | . . 7 1 Melee . | . . . . Uniques/NPCs Destroyed . | . . . . Combat | -11 -10 -10 -10 -------- Run | Yrd Mat Min Sub Hostile Shots Fired 103 | . 23 30 50 Missed 28 | . 5 7 16 Damage Taken 1206 | . 237 314 655 Core 255 | . 53 49 153 Absorbed by Shields . | . . . . Core Remaining (%) 100 | 100 . . . Volleys Fired 73 | . 21 13 39 Largest 2 | . 2 2 2 Hottest 130 | . 100 100 130 Shots Fired 141 | . 42 26 73 Gun 120 | . 42 20 58 Cannon 4 | . . . 4 Launcher 17 | . . 6 11 Special . | . . . . Kinetic 13 | . . . 13 Thermal 99 | . 42 20 37 Explosive 17 | . . 6 11 Electromagnetic 12 | . . . 12 Robot Hit Streak 13 | . 13 2 13 Robot Miss Streak 6 | . 3 6 2 Penetration Max . | . . . . Secondary Targets . | . . . . Shots Hit Robots 86 | . 27 13 46 Core Hits 61 | . 9 33 19 Critical Kills . | . . . . Critical Parts Destroyed . | . . . . Critical Strikes 6 | . 2 1 3 Burn 6 | . 2 1 3 Melee Attacks . | . . . . Impact . | . . . . Slashing . | . . . . Piercing . | . . . . Sneak Attacks . | . . . . Combat Hostiles . | . . . . Follow-up Attacks . | . . . . Damage Inflicted 2483 | . 320 1040 1123 Guns 1015 | . 320 126 569 Cannons . | . . . . Explosions 1457 | . . 903 554 Melee . | . . . . Ramming 11 | . . 11 . Kinetic 95 | . . . 95 Thermal 827 | . 320 126 381 Explosive 1457 | . . 903 554 Electromagnetic 93 | . . . 93 Impact . | . . . . Slashing . | . . . . Piercing . | . . . . Highest Corruption . | . . . . Average Corruption . | . . . . Corruption Purged . | . . . . Corruption Blocked . | . . . . Overload Shots . | . . . . Overflow Damage 37 | . . 13 24 Projectiles . | . . . . Explosions 37 | . . 13 24 Melee . | . . . . Knockbacks . | . . . . Impact . | . . . . Kinetic . | . . . . Secondary . | . . . . Self-Inflicted Damage . | . . . . Shots . | . . . . Rammed 1 | . . 1 . Targets Rammed 1 | . . 1 . Kicked . | . . . . Crushed . | . . . . Highest Temperature 394 | . 394 79 18 Average Temperature 103 | . 145 27 7 Received Heat Transfer 355 | . 153 100 102 Effects 2 | . 2 . . Energy Bleed 1 | . 1 . . Damage (minor) 1 | . 1 . . Siege Activations . | . . . . Robots Corrupted . | . . . . Combat Hostiles . | . . . . Parts Fried 1 | . . . 1 Impact Corruptions . | . . . . Robots Melted . | . . . . Combat Hostiles . | . . . . Parts Melted 4 | . 2 1 1 Heat Transferred 2627 | . 1110 444 1073 Parts Sabotaged . | . . . . Parts Stolen . | . . . . Parts Stripped . | . . . . Power Chain Reactions . | . . . . Alert | -11 -10 -10 -10 ------- Run | Yrd Mat Min Sub Peak Influence 194 | . 172 194 . Initial 66 | . . 66 . Average 117 | . 119 116 . Maximum Alert Level . | . . . . Low Security (%) 100 | . 100 100 . Level 1 . | . . . . Level 2 . | . . . . Level 3 . | . . . . Level 4 . | . . . . Level 5 . | . . . . High Security . | . . . . Max Security . | . . . . Squads Dispatched 1 | . 1 . . Investigation . | . . . . Extermination . | . . . . Reinforcement 1 | . 1 . . Assault . | . . . . Garrison . | . . . . Intercept . | . . . . Searches Triggered . | . . . . Construction Impeded . | . . . . Haulers Reinforced . | . . . . Active Scanning Responses . | . . . . Cargo Convoy Interrupts . | . . . . Stealth | -11 -10 -10 -10 --------- Run | Yrd Mat Min Sub Distress Signals 1 | . 1 . . Communications Jammed . | . . . . Distress Signals . | . . . . Times Spotted 47 | . 10 23 14 Peak Tracking Total 20 | . 4 20 2 Tactical Retreats 6 | . 4 1 1 Traps | -11 -10 -10 -10 ------- Run | Yrd Mat Min Sub Traps Triggered . | . . . . Indirectly . | . . . . Trap Hack Attempts . | . . . . Triggered . | . . . . Disarmed . | . . . . Reprogrammed . | . . . . Reused . | . . . . Traps Extracted . | . . . . Installed . | . . . . Triggered . | . . . . Machines | -11 -10 -10 -10 ---------- Run | Yrd Mat Min Sub Machines Disabled . | . . . . Max in Single Turn . | . . . . Machines Repaired . | . . . . Machines Dismantled . | . . . . Machines Sabotaged . | . . . . Overloaded Fab Kills . | . . . . Hacking | -11 -10 -10 -10 --------- Run | Yrd Mat Min Sub Machines Accessed 2 | . 1 . 1 Terminals 1 | . 1 . . Fabricators . | . . . . Repair Stations . | . . . . Recycling Units . | . . . . Scanalyzers . | . . . . Garrison Access . | . . . . Total Hacks 6 | . 3 . 3 Successful 3 | . . . 3 Failed 3 | . 3 . . Catastrophic 1 | . 1 . . Database Lockouts . | . . . . Manual 3 | . 3 . . Terminals 3 | . 3 . . Fabricators . | . . . . Repair Stations . | . . . . Recycling Units . | . . . . Scanalyzers . | . . . . Garrison Access . | . . . . Terminal Hacks 3 | . . . 3 Record 3 | . . . 3 Fabricator Hacks . | . . . . Repair Station Hacks . | . . . . Recycling Unit Hacks . | . . . . Scanalyzer . | . . . . Garrison Access Hacks . | . . . . Unauthorized Hacks . | . . . . Terminals . | . . . . Fabricators . | . . . . Repair Stations . | . . . . Recycling Units . | . . . . Scanalyzers . | . . . . Garrison Access . | . . . . Data Cores Recovered . | . . . . Used . | . . . . Hacking Detections 1 | . 1 . . Full Trace Events . | . . . . Feedback Events . | . . . . Feedback Blocked . | . . . . Robot Schematics Acquired . | . . . . Robots Built . | . . . . Authchips . | . . . . Time . | . . . . Total Robot Build Rating . | . . . . Part Schematics Acquired . | . . . . Parts Built . | . . . . Authchips . | . . . . Time . | . . . . Total Part Build Rating . | . . . . Parts Repaired . | . . . . Time . | . . . . Parts Recycled . | . . . . Recycled Matter . | . . . . Retrieved Matter . | . . . . Retrieved Components . | . . . . Parts Scanalyzed . | . . . . Part Schematics Acquired . | . . . . Parts Damaged . | . . . . Bothacking | -11 -10 -10 -10 ------------ Run | Yrd Mat Min Sub Used RIF Installer . | . . . . Robots Hacked . | . . . . Non-combat . | . . . . Combat . | . . . . Robot Hacks Applied . | . . . . Relay Couplers Released . | . . . . Fabnet Peak Effective % . | . . . . Robots Rewired . | . . . . Allies Hacked . | . . . . Hacks Repelled . | . . . . Allies | -11 -10 -10 -10 -------- Run | Yrd Mat Min Sub Total Allies . | . . . . Largest Group . | . . . . Highest-Rated Group . | . . . . Highest-Rated Ally . | . . . . Total Orders . | . . . . Ally Attacks . | . . . . Total Damage . | . . . . Kills . | . . . . Allies Corrupted . | . . . . Allies Melted . | . . . . Intel | -11 -10 -10 -10 ------- Run | Yrd Mat Min Sub Robot Analysis Total . | . . . . Derelict Logs Recovered 1 | . . . 1 Drone Launches . | . . . . Drone Recoveries . | . . . . Exploration | -11 -10 -10 -10 ------------- Run | Yrd Mat Min Sub Turns Passed 2279 | . 395 550 1334 Spaces Moved 1632 | 1 232 317 1082 Core . | . . . . Treads 705 | . 105 317 283 Legs 128 | 1 127 . . Wheels 799 | . . . 799 Hover . | . . . . Flight . | . . . . Fastest Speed 90 | 120 120 160 90 Average Speed 122 | 120 138 160 108 Slowest Speed 160 | 120 160 160 160 Overloaded Moves . | . . . . Propulsion Burnouts . | . . . . Robots Hopped . | . . . . Cave-ins Triggered . | . . . . Exploration Rate (%) 40 | 2 36 56 66 Regions Visited 3 Branch Regions 2 Pre-discovered Areas 3 | . . 1 2 Known Exits Taken . | . . . . Unknown Exits Taken 3 | 1 1 1 . Scrap Searched 1 | . . 1 . Spaces Dug . | . . . . Terrain Destroyed 104 | . . 35 69 Melee . | . . . . Projectile . | . . . . AOE 104 | . . 35 69 Terrain Rammed . | . . . . Walls Destroyed . | . . . . Machines Disabled . | . . . . Actions | -11 -10 -10 -10 --------- Run | Yrd Mat Min Sub Total 1771 | . 267 333 1171 Wait 23 | . . . 23 Move 1629 | . 231 316 1082 Hop . | . . . . Pick Up 14 | . 7 1 6 Fast Attach 7 | . 1 . 6 Attach 6 | . 2 . 4 Detach 1 | . . . 1 Swap 4 | . . 1 3 Drop 13 | . 5 1 7 Fire 73 | . 21 13 39 Melee . | . . . . Ram . | . . . . Kick . | . . . . Crush 1 | . . 1 . Escape Stasis . | . . . . Rewire . | . . . . Trap . | . . . . Miscellaneous . | . . . . Route ------- -11/Scrapyard -10/Materials (discovered 2 exits: [*Mat] / [*Min]) -10/Mines (discovered 2 exits: [*Mat] / *Sub) -10/Subcaves (discovered 3 exits: *Mat x2 / Rec) History --------- Turn | Location | Event 1 | -11/Scrapyard | Discovered new exit (range 0) 1 | -11/Scrapyard | Entered Materials 113 | -10/Materials | Discovered new exit (range 13) 181 | -10/Materials | Discovered new exit (range 10) 307 | -10/Materials | Build established: Mutant 396 | -10/Materials | Entered Mines 520 | -10/Mines | Received a Rocket Launcher from a helpful Derelict 590 | -10/Mines | Assembled infested the area 628 | -10/Mines | Destroyed 14 combat bots 835 | -10/Mines | Discovered new exit (range 13) 838 | -10/Mines | Learned location of Storage (-7) 942 | -10/Mines | Discovered new exit (range 3) 946 | -10/Mines | Entered Subcaves 983 | -10/Subcaves | Shifting Twisted Machinery released Mak. Laser 1008 | -10/Subcaves | A swath of the cavern ceiling suddenly collapsed 1467 | -10/Subcaves | Lost 4 parts (1p2n1w) 1514 | -10/Subcaves | A swath of the cavern ceiling suddenly collapsed 1651 | -10/Subcaves | Core integrity fell below 50% 1720 | -10/Subcaves | Learned location of Zion (-7) 1720 | -10/Subcaves | Met a Zionite searching for "candidates" 1729 | -10/Subcaves | Discovered new exit (range 12) 1751 | -10/Subcaves | Visited Clippyterm 1754 | -10/Subcaves | Identified exit to Materials 1754 | -10/Subcaves | Identified exit to Recycling 2129 | -10/Subcaves | Core integrity fell below 20% 2280 | -10/Subcaves | Destroyed by LJ-Q6C(R) with Subdweller Laser Last Messages --------------- 01950_ MO-J1O(R) destroyed. 01955_ Acquired 21 matter. 01957_ Acquired Sub. Power Source. 01958_ Acquired 10 matter. 02071_ Dropped Assault Rifle. 02071_ Acquired Riot Gun. 02110_ 6Z-KMS(R) angrily emerges from the Twisted Machinery. 02110_ 6Z-KMS(R): "SUBMAD!" 02119_ 3M-M7M(R) destroyed. 02131_ 6Z-KMS(R) suffers critical hit (Burn). 02134_ 6Z-KMS(R) overheating. 02137_ Sub. Power Source fried. 02137_ 6Z-KMS(R) destroyed. 02140_ Acquired 10 matter. 02142_ Dropped Heat Sink. 02143_ Acquired Disposable Heat Sink. 02150_ Acquired 10 matter. 02171_ Dropped Med. Laser. 02172_ Acquired Sub. Beam Cannon. 02258_ Acquired 10 matter. Map ----- +----------------------------------------------------+ | ????????????## ##????# " #?????????????????? | | ????????????# #?????# "#??????????????????? | | ????????????# ##???## "##?????????????????? | | ????????????# #??## "#?????????????????? | | ????????????# #### #??????????????????? | | ????????????## " #???????????????????? | | ???????????## %### "" #???????????????????? | | ???????????# ####" ""#???????????????????? | | ???????????# ####?# "" ##????????#?????????? | | ???????????# ##??###### ##??????"#?????????? | | ???????????## ###?# #?## #?????" #?????????? | | ????????????# ##?# #?# ##???" "??????????? | | ????????????# #?# ## ##?" """?????????? | | ????????????# #?# " ## "#""?????????? | | ????????????# ##?### "" #??????????? | | ???????????## #????## " # ##??????????? | | ???????????# ######?????# ### ###?????? | | ???????????# #??????????# %% ???? | | ???????????####??????????# ???? | | ?????????????????????????# % ???? | | ?????????????????????????## ## ???? | | ??????????????????????????# #?# % ????? | | ???????????####???????????# #?? ## ## ????? | | ??????????# R ????#### ###???#?? ##???????? | | ??????????# R # # ##?????????#????????? | | ??????????# @ #???????????????????? | | ??????????# #???????????????????? | | ???????????# ## # # #???????????????????? | | ???????????# ??????# ?### #???????????????????? | | ???????????????????##????# #???????????????????? | | ?????????????????????????# #???????????????????? | | ?????????????????????????# #???????????????????? | | ????????????????????????? #???????????????????? | | ????????????????????????? ???????????????????? | | ????????????????????????? ???????????????????? | | ????????????????????????? ## ??????????????????? | | ?????????????????????????#?? ??????????????????? | | ????????????????????????????### ?????????????????? | | ??????????????????????????????? ?????????????????? | | ?????????????????????????????????????????????????? | | ?????????????????????????????????????????????????? | | ?????????????????????????????????????????????????? | | ?????????????????????????????????????????????????? | | ?????????????????????????????????????????????????? | | ?????????????????????????????????????????????????? | | ?????????????????????????????????????????????????? | | ?????????????????????????????????????????????????? | | ?????????????????????????????????????????????????? | | ?????????????????????????????????????????????????? | | ?????????????????????????????????????????????????? | +----------------------------------------------------+ Best States ------------- Heat Dissipation 35 Coolant Potential 50 Energy Generation 15 Energy Capacity 250 Matter Stores 300 Matter Capacity 300 Sight Range 16 Terrain Scan Density 10 Evasion (%) 55 Recoil Reduction 2 Item Schematics ----------------- None Robot Schematics ------------------ None Fabricated ------------ Nothing Alien Tech Used ----------------- None Achievements -------------- None Challenges ------------ None Game ------ Seed ControlMakeshiftPrototype Manual? 0 Play Time 00:14:48 Cumulative 134.1 hours Start 2024.11.24 @ 16:01:00 End 2024.11.24 @ 16:10:46 Sessions 1 Manual Loads 0 Difficulty Rogue Special Mode None Game No. 257 Rogue 257 Adventurer 0 Explorer 0 Win Type - Total 0 Types 0/0/0/0/0/0/0/0/0 Lore% 43 Gallery% 41 Achievement% 36 Wizard Run 0 Options --------- Layout 0 ASCII 0 Keyboard 0 Movement Mouse Keybinds 0 Fullscreen 1 Font 24/Smallcaps Map View 91x25 Zoom Use 97% Tactical HUD 1 Map Filters NONE Filters NONE Steam 1 RUN: 0861f763-b023-45bc-96cc-9bec71dde21c